bitfinex-derivatives/quotes_BNBF0:USTF0_20250807
["timestamp","ask_amount","ask_price","bid_price","bid_amount"]
[1754565051819,0.8639373,777.6,776.55,0.85111856]
[1754565052316,0.8639373,777.64,776.59,0.85111856]
[1754565052516,0.8639373,777.65,776.59,0.85111856]
[1754565053618,0.8639373,777.71,776.63,0.85111856]
[1754565055324,0.22384963,777.97,776.63,0.85111856]
[1754565055325,0.8639373,777.72,776.63,0.85111856]
[1754565055722,0.8639373,777.7,776.65,0.85111856]
[1754565056322,0.8639373,777.71,776.65,0.85111856]
[1754565056524,0.8639373,777.74,776.67,0.85111856]
[1754565056823,0.8639373,777.73,776.67,0.85111856]
[1754565057027,0.8639373,777.74,776.67,0.85111856]
[1754565057322,0.8639373,777.74,776.66,0.85111856]
[1754565057622,0.8639373,777.75,776.66,0.85111856]
[1754565058422,0.8639373,777.76,776.66,0.85111856]
[1754565059326,0.8639373,777.77,776.66,0.85111856]
[1754565059524,0.8639373,777.78,776.66,0.85111856]
[1754565060226,0.8639373,777.8,776.68,0.85111856]
[1754565060524,0.791,777.79,776.68,0.85111856]
[1754565060828,0.791,777.79,776.67,0.85111856]
[1754565061227,0.791,777.79,776.66,0.85111856]
[1754565062126,0.791,777.79,776.65,0.85111856]
[1754565062631,0.791,777.79,776.66,0.85111856]
[1754565064231,0.791,777.79,776.64,0.85111856]
[1754565064431,0.791,777.79,776.63,0.85111856]
[1754565064935,0.791,777.79,776.62,0.85111856]
[1754565067538,0.791,777.79,776.6,0.85111856]
[1754565068034,0.791,777.79,776.59,0.85111856]
[1754565069037,0.791,777.79,776.55,0.85111856]
[1754565069241,0.791,777.79,776.56,0.85111856]
[1754565070537,1.6549373,777.79,776.56,0.85111856]
[1754565070838,0.791,777.79,776.56,0.85111856]
[1754565071246,1.6549373,777.79,776.56,0.85111856]
[1754565071437,0.8639373,777.77,776.54,0.85111856]
[1754565073339,0.8639373,777.76,776.54,0.85111856]
[1754565073842,0.8639373,777.76,776.55,0.85111856]
[1754565074645,0.8639373,777.73,776.57,0.85111856]
[1754565075445,0.8639373,777.72,776.57,0.85111856]
[1754565075647,0.8639373,777.75,776.55,0.85111856]
[1754565076248,0.791,777.79,776.51,0.85111856]
[1754565078551,0.791,777.79,776.52,0.85111856]
[1754565078752,1.6549373,777.79,776.51,0.85111856]
[1754565079451,0.8639373,777.78,776.52,0.85111856]
[1754565080348,0.8639373,777.77,776.52,0.85111856]
[1754565081353,0.8639373,777.77,776.53,0.85111856]
[1754565081554,0.8639373,777.76,776.53,0.85111856]
[1754565082550,0.8639373,777.74,776.54,0.85111856]
[1754565082755,0.8639373,777.75,776.54,0.85111856]
[1754565083358,0.8639373,777.72,776.55,0.85111856]
[1754565084159,0.8639373,777.73,776.56,0.85111856]
[1754565084358,0.8639373,777.72,776.55,0.85111856]
[1754565084556,0.8639373,777.69,776.57,0.85111856]
[1754565085059,0.8639373,777.7,776.57,0.85111856]
[1754565085260,0.8639373,777.69,776.57,0.85111856]
[1754565085457,0.8639373,777.66,776.58,0.85111856]
[1754565085762,0.8639373,777.65,776.59,0.85111856]
[1754565085957,0.8639373,777.66,776.59,0.85111856]
[1754565086257,0.8639373,777.58,776.63,0.85111856]
[1754565086457,0.8639373,777.55,776.65,0.85111856]
[1754565087159,0.8639373,777.55,776.66,0.85111856]
[1754565087462,0.8639373,777.54,776.67,0.85111856]
[1754565088459,0.8639373,777.52,776.68,0.85111856]
[1754565089364,0.8639373,777.52,776.7,0.85111856]
[1754565089663,0.8639373,777.51,776.69,0.85111856]
[1754565090364,0.8639373,777.5,776.7,0.85111856]
[1754565091561,0.8639373,777.49,776.7,0.85111856]
[1754565091868,0.8639373,777.47,776.72,0.85111856]
[1754565092164,0.8639373,777.46,776.71,0.85111856]
[1754565092363,0.8639373,777.45,776.7,0.85111856]
[1754565093566,0.8639373,777.44,776.7,0.85111856]
[1754565093764,0.8639373,777.44,776.71,0.85111856]
[1754565094068,0.8639373,777.45,776.7,0.85111856]
[1754565094468,0.8639373,777.44,776.71,0.85111856]
[1754565094969,0.8639373,777.45,776.7,0.85111856]
[1754565095768,0.8639373,777.5,776.67,0.85111856]
[1754565095970,0.8639373,777.51,776.66,0.85111856]
[1754565096665,0.8639373,777.52,776.66,0.85111856]
[1754565097569,0.8639373,777.53,776.64,0.85111856]
[1754565098267,0.8639373,777.52,776.65,0.85111856]
[1754565098472,0.8639373,777.4,776.65,0.85111856]
[1754565098672,0.791,777.79,776.04,0.22401535]
[1754565098673,0.8639373,777.32,776.68,0.85111856]
[1754565099367,0.8639373,777.32,776.54,1.1426031]
[1754565099368,0.8639373,777.32,776.63,0.85111856]
[1754565100772,0.8639373,777.32,776.04,0.22401535]
[1754565100773,0.8639373,777.33,776.62,0.85111856]
[1754565100974,0.8639373,777.35,776.61,0.85111856]
[1754565101470,0.8639373,777.34,776.61,0.85111856]
[1754565101769,0.8639373,777.35,776.61,0.85111856]
[1754565103570,0.8639373,777.36,776.6,0.85111856]
[1754565104971,0.8639373,777.35,776.61,0.85111856]
[1754565105171,0.8639373,777.36,776.61,0.85111856]
[1754565105373,0.8639373,777.35,776.61,0.85111856]
[1754565105976,0.8639373,777.36,776.61,0.85111856]
[1754565106277,0.8639373,777.36,776.6,0.85111856]
[1754565106576,0.8639373,777.35,776.61,0.85111856]
[1754565106773,0.8639373,777.31,776.59,0.85111856]
[1754565107272,0.8639373,777.31,776.58,0.85111856]
[1754565108176,0.8639373,777.32,776.57,0.85111856]
[1754565108376,0.8639373,777.32,776.58,0.85111856]
[1754565108774,0.882,777.31,776.58,0.85111856]
[1754565109879,1.7459373,777.31,776.59,0.85111856]
[1754565110280,1.7459373,777.31,776.58,0.85111856]
[1754565110979,0.882,777.31,776.58,0.85111856]
[1754565111280,0.882,777.31,776.57,0.85111856]
[1754565111780,0.882,777.31,776.58,0.85111856]
[1754565112379,0.882,777.31,776.57,0.85111856]
[1754565115782,0.882,777.31,776.58,0.85111856]
[1754565115982,0.882,777.31,776.57,0.85111856]
[1754565116478,0.882,777.31,776.54,0.85111856]
[1754565116678,0.8639373,777.27,776.49,0.85111856]
[1754565116883,0.8639373,777.29,776.47,0.85111856]
[1754565118181,0.882,777.31,776.44,0.85111856]
[1754565119177,0.882,777.31,776.43,0.85111856]
[1754565121881,0.882,777.31,776.42,0.85111856]
[1754565122081,0.882,777.31,776.43,0.85111856]
[1754565122385,1.7459373,777.31,776.39,0.85111856]
[1754565122585,0.8639373,777.3,776.39,0.85111856]
[1754565122985,0.8639373,777.29,776.38,0.85111856]
[1754565123186,0.8639373,777.28,776.37,0.85111856]
[1754565123387,0.8639373,777.29,776.36,0.85111856]
[1754565124584,0.8639373,777.29,776.35,0.85111856]
[1754565125285,0.8639373,777.3,776.35,0.85111856]
[1754565125484,0.882,777.31,776.33,0.85111856]
[1754565125685,0.882,777.31,776.4,0.85111856]
[1754565125888,0.882,777.31,776.37,0.85111856]
[1754565130692,0.882,777.31,776.38,0.85111856]
[1754565130892,0.882,777.31,776.37,0.85111856]
[1754565131489,0.882,777.31,776.04,0.22401535]
[1754565131490,0.882,777.31,776.35,0.85111856]
[1754565134697,0.882,777.31,776.41,0.85111856]
[1754565135298,0.8639373,777.3,776.43,0.85111856]
[1754565137695,0.8639373,777.3,776.42,0.85111856]
[1754565138199,0.8639373,777.3,776.43,0.85111856]
[1754565138401,0.8639373,777.29,776.43,0.85111856]
[1754565139402,0.8639373,777.3,776.43,0.85111856]
[1754565140199,0.882,777.31,776.45,0.85111856]
[1754565140903,0.882,777.31,776.04,0.22401535]
[1754565140904,0.882,777.31,776.43,0.85111856]
[1754565142602,0.8639373,777.35,776.43,0.85111856]
[1754565143308,0.8639373,777.34,776.44,0.85111856]
[1754565143908,0.8639373,777.33,776.44,0.85111856]
[1754565144604,0.8639373,777.33,776.45,0.85111856]
[1754565145305,0.8639373,777.32,776.45,0.85111856]
[1754565145806,0.8639373,777.33,776.46,0.85111856]
[1754565146005,0.8639373,777.33,776.45,0.85111856]
[1754565146209,0.8639373,777.37,776.49,0.85111856]
[1754565146410,0.8639373,777.36,776.49,0.85111856]
[1754565146616,0.8639373,777.36,776.5,0.85111856]
[1754565147014,0.8639373,777.31,776.53,0.85111856]
[1754565148109,0.8639373,777.3,776.54,0.85111856]
[1754565149711,0.8639373,777.3,776.53,0.85111856]
[1754565149914,0.8639373,777.3,776.54,0.85111856]
[1754565150110,0.8639373,777.33,776.56,0.85111856]
[1754565151015,0.8639373,777.32,776.56,0.85111856]
[1754565151213,0.8639373,777.32,776.57,0.85111856]
[1754565151613,0.863,777.31,776.57,0.85111856]
[1754565151819,0.8639373,777.29,776.54,0.85111856]
[1754565152318,0.8639373,777.27,776.55,0.85111856]
[1754565153216,0.8639373,777.26,776.56,0.85111856]
[1754565154219,0.8639373,777.26,776.57,0.85111856]
[1754565154820,0.8639373,777.25,776.57,0.85111856]
[1754565155420,0.863,777.31,776.42,1.1426031]
[1754565155619,0.86661289,777.25,776.57,0.85481621]
[1754565156015,0.863,777.31,776.57,0.85481621]
[1754565156016,0.86661289,777.27,776.57,0.85481621]
[1754565156219,0.86661289,777.26,776.57,0.85481621]
[1754565156513,0.86661289,777.26,776.04,0.22401535]
[1754565156514,0.86661289,777.28,776.56,0.85481621]
[1754565156817,1.72961289,777.31,776.54,0.85481621]
[1754565157117,1.72961289,777.31,776.55,0.85481621]
[1754565157821,1.72961289,777.31,776.56,0.85481621]
[1754565158116,0.86661289,777.29,776.56,0.85481621]
[1754565160223,0.86661289,777.29,776.57,0.85481621]
[1754565160923,0.86661289,777.29,776.38,1.1426031]
[1754565160924,0.86661289,777.29,776.56,0.85481621]
[1754565162622,0.86661289,777.29,776.54,0.85481621]
[1754565163323,0.86661289,777.28,776.55,0.85481621]
[1754565163524,0.86661289,777.27,776.56,0.85481621]
[1754565163925,0.86661289,777.23,776.59,0.85481621]
[1754565165222,0.86661289,777.22,776.59,0.85481621]
[1754565166021,0.86661289,777.24,776.58,0.85481621]
[1754565166225,0.86661289,777.23,776.58,0.85481621]
[1754565166425,0.86661289,777.24,776.58,0.85481621]
[1754565166823,0.86661289,777.28,776.55,0.85481621]
[1754565167322,0.86661289,777.27,776.55,0.85481621]
[1754565167527,0.86661289,777.22,776.5,0.85481621]
[1754565168627,0.86661289,777.21,776.51,0.85481621]
[1754565169525,0.86661289,777.2,776.51,0.85481621]
[1754565169929,0.86661289,777.19,776.52,0.85481621]
[1754565170327,0.86661289,777.17,776.53,0.85481621]
[1754565170527,0.86661289,777.16,776.54,0.85481621]
[1754565170726,0.86661289,777.14,776.52,0.85481621]
[1754565171025,0.86661289,777.16,776.51,0.85481621]
[1754565171431,0.86661289,777.13,776.49,0.85481621]
[1754565172028,0.86661289,777.14,776.48,0.85481621]
[1754565175134,0.815,777.13,776.48,0.85481621]
[1754565175633,1.68161289,777.13,776.49,0.85481621]
[1754565176030,1.68161289,777.13,776.24,0.22390148]
[1754565176031,0.815,777.13,776.48,0.85481621]
[1754565176730,0.815,777.13,776.46,0.85481621]
[1754565181639,0.815,777.13,776.45,0.85481621]
[1754565181836,0.815,777.13,776.44,0.85481621]
[1754565182540,1.68161289,777.13,776.42,0.85481621]
[1754565182736,0.86661289,777.12,776.4,0.85481621]
[1754565185541,0.86661289,777.11,776.4,0.85481621]
[1754565185841,0.86661289,777.08,776.42,0.85481621]
[1754565186141,0.86661289,777.1,776.42,0.85481621]
[1754565186340,0.86661289,777.1,776.41,0.85481621]
[1754565187540,0.86661289,777.09,776.39,0.85481621]
[1754565188141,0.86661289,777.08,776.4,0.85481621]
[1754565188338,0.86661289,777.08,776.39,0.85481621]
[1754565188943,0.86661289,777.09,776.4,0.85481621]
[1754565189238,0.86661289,777.09,776.39,0.85481621]
[1754565189439,0.86661289,777.08,776.4,0.85481621]
[1754565189737,0.86661289,777.09,776.4,0.85481621]
[1754565189942,0.86661289,777.07,776.41,0.85481621]
[1754565190339,0.86661289,777.07,776.4,0.85481621]
[1754565191044,0.86661289,777.09,776.39,0.85481621]
[1754565192439,0.86661289,777.09,776.38,0.85481621]
[1754565192644,0.86661289,777.11,776.37,0.85481621]
[1754565195144,1.1609896,777.29,776.24,0.22390148]
[1754565195145,0.86661289,777.23,776.28,0.85481621]
[1754565195542,0.86661289,777.2,776.24,1.07871769]
[1754565197349,1.163,777.22,776.24,1.07871769]
[1754565197350,0.86661289,777.21,776.24,0.22390148]
[1754565200449,2.02961289,777.22,776.24,0.22390148]
[1754565200849,0.86661289,777.21,776.24,0.22390148]
[1754565201049,2.02961289,777.22,776.24,0.22390148]
[1754565201550,1.163,777.22,776.24,1.07871769]
[1754565201749,2.02961289,777.22,776.24,0.22390148]
[1754565204748,0.86661289,777.09,776.31,0.85481621]
[1754565205351,0.86661289,777.08,776.32,0.85481621]
[1754565205748,0.86661289,777.08,776.31,0.85481621]
[1754565206151,0.86661289,777.08,776.32,0.85481621]
[1754565206349,0.86661289,777.08,776.31,0.85481621]
[1754565210055,0.86661289,777.06,776.33,0.85481621]
[1754565210557,0.86661289,777.07,776.32,0.85481621]
[1754565211053,0.86661289,777.08,776.31,0.85481621]
[1754565211557,0.86661289,777.09,776.31,0.85481621]
[1754565212253,0.86661289,777.09,776.3,0.85481621]
[1754565212457,0.86661289,777.1,776.3,0.85481621]
[1754565215565,0.86661289,777.17,776.28,0.85481621]
[1754565215864,1.163,777.22,776.47,0.85481621]
[1754565216766,1.163,777.22,776.48,0.85481621]
[1754565216963,1.163,777.22,776.49,0.85481621]
[1754565217166,1.163,777.22,776.53,0.85481621]
[1754565218768,1.163,777.22,776.55,0.85481621]
[1754565219970,1.163,777.22,776.56,0.85481621]
[1754565222467,1.163,777.22,776.55,0.85481621]
[1754565223772,1.163,777.22,776.56,0.85481621]
[1754565224268,1.163,777.22,776.55,0.85481621]
[1754565224971,1.163,777.22,776.56,0.85481621]
[1754565225667,1.163,777.22,776.55,0.85481621]
[1754565225972,1.163,777.22,776.56,0.85481621]
[1754565226272,1.163,777.22,776.53,0.85481621]
[1754565228567,1.163,777.22,776.36,1.1426031]
[1754565228568,1.163,777.22,776.52,0.85481621]
[1754565228871,1.163,777.22,776.33,0.85481621]
[1754565229071,1.163,777.22,776.26,0.85481621]
[1754565229268,1.163,777.22,776.24,0.22390148]
[1754565229269,1.163,777.22,776.29,0.85481621]
[1754565229968,1.163,777.22,776.28,0.85481621]
[1754565231273,1.163,777.22,776.29,0.85481621]
[1754565231672,0.86661289,777.44,776.29,0.85481621]
[1754565232074,0.86661289,777.43,776.29,0.85481621]
[1754565234172,0.86661289,777.43,776.24,0.22390148]
[1754565234173,0.86661289,777.42,776.3,0.85481621]
[1754565234777,0.86661289,777.41,776.3,0.85481621]
[1754565236174,0.86661289,777.27,776.39,0.85481621]
[1754565241176,0.86661289,777.36,776.42,0.85481621]
[1754565241377,0.86661289,777.36,776.41,0.85481621]
[1754565243485,0.86661289,777.37,776.41,0.85481621]
[1754565244586,0.86661289,777.36,776.41,0.85481621]
[1754565245880,0.86661289,777.37,776.4,0.85481621]
[1754565247286,0.86661289,777.38,776.4,0.85481621]
[1754565249184,0.86661289,777.37,776.41,0.85481621]
[1754565249889,0.86661289,777.34,776.43,0.85481621]
[1754565250089,0.86661289,777.29,776.46,0.85481621]
[1754565250990,0.86661289,777.3,776.45,0.85481621]
[1754565251186,0.86661289,777.3,776.46,0.85481621]
[1754565251590,0.86661289,777.29,776.45,0.85481621]
[1754565251989,0.86661289,777.31,776.44,0.85481621]
[1754565253794,0.86661289,777.32,776.44,0.85481621]
[1754565254092,0.86661289,777.31,776.44,0.85481621]
[1754565255691,0.86661289,777.3,776.45,0.85481621]
[1754565256089,0.86661289,777.3,776.24,0.22390148]
[1754565256090,0.86661289,777.31,776.44,0.85481621]
[1754565256291,0.86661289,777.32,776.44,0.85481621]
[1754565257996,0.86661289,777.3,776.42,0.85481621]
[1754565258293,0.86661289,777.29,776.42,0.85481621]
[1754565259593,0.86661289,777.29,776.43,0.85481621]
[1754565260297,0.86661289,777.28,776.43,0.85481621]
[1754565261899,0.86661289,777.27,776.44,0.85481621]
[1754565263896,0.86661289,777.29,776.43,0.85481621]
[1754565264297,0.86661289,777.29,776.44,0.85481621]
[1754565264496,0.86661289,777.28,776.44,0.85481621]
[1754565265803,0.86661289,777.27,776.45,0.85481621]
[1754565266005,0.2239267,777.55,776.45,0.85481621]
[1754565266006,0.86661289,777.26,776.45,0.85481621]
[1754565266503,0.86661289,777.22,776.43,0.85481621]
[1754565266903,0.86661289,777.23,776.43,0.85481621]
[1754565267203,0.86661289,777.22,776.43,0.85481621]
[1754565268400,0.86661289,777.22,776.44,0.85481621]
[1754565269305,0.86661289,777.21,776.44,0.85481621]
[1754565270206,0.86661289,777.2,776.45,0.85481621]
[1754565270706,0.86661289,777.19,776.46,0.85481621]
[1754565271107,0.86661289,777.2,776.45,0.85481621]
[1754565271408,0.86661289,777.2,776.46,0.85481621]
[1754565272009,0.86661289,777.22,776.48,0.85481621]
[1754565272405,0.86661289,777.19,776.46,0.85481621]
[1754565272809,0.86661289,777.22,776.44,0.85481621]
[1754565273309,1.063,777.33,776.46,0.85481621]
[1754565273310,0.86661289,777.2,776.46,0.85481621]
[1754565274307,0.86661289,777.19,776.47,0.85481621]
[1754565275213,0.86661289,777.18,776.46,0.85481621]
[1754565275509,0.86661289,777.18,776.48,0.85481621]
[1754565276012,0.86661289,777.17,776.48,0.85481621]
[1754565276212,0.86661289,777.18,776.47,0.85481621]
[1754565276412,0.86661289,777.17,776.47,0.85481621]
[1754565276709,0.86661289,777.17,776.46,0.85481621]
[1754565277109,0.86661289,777.16,776.46,0.85481621]
[1754565277312,0.86661289,777.17,776.46,0.85481621]
[1754565277512,0.86661289,777.17,776.45,0.85481621]
[1754565277813,0.86661289,777.11,776.4,0.85481621]
[1754565279114,0.86661289,777.12,776.4,0.85481621]
[1754565279312,0.86661289,777.07,776.43,0.85481621]
[1754565281512,0.86661289,777.08,776.42,0.85481621]
[1754565281918,0.86661289,777.17,776.36,0.85481621]
[1754565282218,0.86661289,777.18,776.36,0.85481621]
[1754565282513,0.86661289,777.29,776.29,0.85481621]
[1754565282821,0.86661289,777.29,776.28,0.85481621]
[1754565285315,0.86661289,777.29,776.29,0.85481621]
[1754565286120,0.86661289,777.29,776.28,0.85481621]
[1754565287319,0.86661289,777.29,776.29,0.85481621]
[1754565287517,0.86661289,777.29,776.28,0.85481621]
[1754565288021,0.86661289,777.29,776.29,0.85481621]
[1754565288218,0.86661289,777.27,776.27,0.85481621]
[1754565288422,0.86661289,777.28,776.27,0.85481621]
[1754565290518,0.86661289,777.28,776.26,0.85481621]
[1754565291825,0.86661289,777.26,776.27,0.85481621]
[1754565292321,0.86661289,777.26,776.24,0.22390148]
[1754565292322,0.86661289,777.18,776.33,0.85481621]
[1754565292523,0.86661289,777.17,776.33,0.85481621]
[1754565293624,0.86661289,777.13,776.36,0.85481621]
[1754565294927,0.86661289,777.12,776.36,0.85481621]
[1754565295227,0.86661289,777.13,776.36,0.85481621]
[1754565296729,0.86661289,777.14,776.35,0.85481621]
[1754565297026,0.86661289,777.17,776.39,0.85481621]
[1754565297325,0.86661289,777.13,776.42,0.85481621]
[1754565297530,0.86661289,777.12,776.42,0.85481621]
[1754565299828,0.86661289,777.18,776.48,0.85481621]
[1754565300628,0.86661289,777.21,776.46,0.85481621]
[1754565300833,1.063,777.33,776.27,1.1426031]
[1754565301129,0.86689173,777.21,776.46,0.85741309]
[1754565302433,0.86689173,777.2,776.45,0.85741309]
[1754565303334,0.86689173,777.22,776.43,0.85741309]
[1754565304036,0.86689173,777.21,776.44,0.85741309]
[1754565304332,0.86689173,777.18,776.41,0.85741309]
[1754565305632,0.86689173,777.2,776.41,0.85741309]
[1754565305937,0.86689173,777.2,776.4,0.85741309]
[1754565306237,0.86689173,777.19,776.38,0.85741309]
[1754565307135,0.86689173,777.17,776.39,0.85741309]
[1754565307736,0.86689173,777.18,776.39,0.85741309]
[1754565308840,0.86689173,777.19,776.32,0.85741309]
[1754565309238,0.86689173,777.17,776.31,0.85741309]
[1754565310540,0.86689173,777.18,776.31,0.85741309]
[1754565311039,0.86689173,777.17,776.3,0.85741309]
[1754565311441,0.86689173,777.17,776.29,0.85741309]
[1754565312243,0.86689173,777.16,776.28,0.85741309]
[1754565312444,0.86689173,777.15,776.29,0.85741309]
[1754565313841,0.86689173,777.15,776.28,0.85741309]
[1754565314745,0.86689173,777.14,776.29,0.85741309]
[1754565315948,0.86689173,777.14,776.24,0.22390148]
[1754565315949,0.86689173,777.13,776.3,0.85741309]
[1754565316145,0.86689173,777.14,776.3,0.85741309]
[1754565316350,0.86689173,777.13,776.3,0.85741309]
[1754565316649,0.86689173,777.14,776.3,0.85741309]
[1754565317348,0.86689173,777.13,776.29,0.85741309]
[1754565318652,0.86689173,777.09,776.32,0.85741309]
[1754565320056,0.86689173,777.08,776.32,0.85741309]
[1754565321052,0.86689173,777.08,776.33,0.85741309]
[1754565321356,0.86689173,777.08,776.32,0.85741309]
[1754565322253,0.86689173,777.08,776.33,0.85741309]
[1754565322457,0.86689173,777.08,776.32,0.85741309]
[1754565323753,0.86689173,777.07,776.33,0.85741309]
[1754565323955,0.86689173,777.06,776.34,0.85741309]
[1754565324158,0.86689173,777.06,776.33,0.85741309]
[1754565324358,0.86689173,777.06,776.34,0.85741309]
[1754565325359,0.86689173,777.05,776.34,0.85741309]
[1754565325561,0.86689173,777.06,776.34,0.85741309]
[1754565325859,0.86689173,777.06,776.35,0.85741309]
[1754565326155,0.86689173,777.06,776.34,0.85741309]
[1754565326555,0.86689173,777.04,776.35,0.85741309]
[1754565326759,0.86689173,777.04,776.36,0.85741309]
[1754565327759,0.86689173,777.03,776.36,0.85741309]
[1754565329657,0.86689173,777.02,776.36,0.85741309]
[1754565330361,0.86689173,777.02,776.37,0.85741309]
[1754565330657,0.86689173,777.02,776.36,0.85741309]
[1754565331061,0.86689173,777.01,776.37,0.85741309]
[1754565331257,0.86689173,777.04,776.35,0.85741309]
[1754565331959,0.86689173,777.1,776.3,0.85741309]
[1754565332158,0.86689173,777.09,776.31,0.85741309]
[1754565333759,0.86689173,777.09,776.3,0.85741309]
[1754565333964,0.86689173,777.08,776.3,0.85741309]
[1754565334259,0.86689173,777.08,776.31,0.85741309]
[1754565334661,0.86689173,777.01,776.23,0.85741309]
[1754565335065,0.86689173,777.0,776.23,0.85741309]
[1754565335265,0.86689173,777.0,776.24,0.85741309]
[1754565335464,0.86689173,777.0,776.23,0.85741309]
[1754565335664,0.86689173,776.98,776.25,0.85741309]
[1754565336168,0.86689173,776.93,776.28,0.85741309]
[1754565336368,0.86689173,776.89,776.25,0.85741309]
[1754565336568,0.86689173,776.9,776.25,0.85741309]
[1754565336861,0.86689173,776.9,776.23,0.85741309]
[1754565337264,0.86689173,776.89,776.23,0.85741309]
[1754565337463,0.86689173,776.9,776.22,0.85741309]
[1754565338463,0.86689173,776.9,776.21,0.85741309]
[1754565339063,0.86689173,776.9,776.22,0.85741309]
[1754565339364,0.86689173,776.9,776.21,0.85741309]
[1754565339867,0.86689173,776.88,776.22,0.85741309]
[1754565340068,0.86689173,776.89,776.14,0.85741309]
[1754565340468,0.86689173,776.82,776.03,0.85741309]
[1754565340768,0.86689173,776.66,775.91,0.22405573]
[1754565341469,0.86689173,776.84,775.99,0.85741309]
[1754565342268,0.86689173,776.83,775.98,0.85741309]
[1754565342469,0.86689173,776.85,775.96,0.85741309]
[1754565342870,0.86689173,776.93,775.91,1.08146882]
[1754565343668,0.86689173,776.94,775.91,0.22405573]
[1754565344067,0.86689173,776.96,775.92,0.85741309]
[1754565344271,0.86689173,776.97,775.92,0.85741309]
[1754565344474,0.86689173,776.97,775.91,1.08146882]
[1754565344670,0.86689173,776.98,775.91,1.08146882]
[1754565345169,0.86689173,777.0,775.93,0.85741309]
[1754565345473,0.86689173,777.0,775.92,0.85741309]
[1754565345671,0.86689173,776.99,775.93,0.85741309]
[1754565346376,0.86689173,777.0,775.92,0.85741309]
[1754565346674,0.86689173,776.99,775.92,0.85741309]
[1754565346871,0.2239267,777.55,775.91,0.22405573]
[1754565346872,0.86689173,776.98,775.91,0.22405573]
[1754565347474,1.1609896,777.33,775.91,0.22405573]
[1754565347671,0.2239267,777.55,775.91,0.22405573]
[1754565347672,0.86516242,777.01,775.91,0.22405573]
[1754565347870,0.86516242,777.03,775.91,0.22405573]
[1754565348374,0.86516242,777.05,775.91,0.22405573]
[1754565349871,0.86516242,777.04,775.91,0.22405573]
[1754565350269,0.86516242,777.03,775.91,0.22405573]
[1754565350475,0.86516242,777.05,775.91,0.22405573]
[1754565351374,0.86516242,777.06,775.91,0.22405573]
[1754565351671,0.86516242,776.77,775.91,0.22405573]
[1754565352373,0.86516242,776.78,775.91,0.22405573]
[1754565352571,0.86516242,776.81,775.91,0.22405573]
[1754565353374,0.86516242,776.82,775.91,0.22405573]
[1754565354374,0.86516242,776.8,775.91,0.22405573]
[1754565354579,0.86516242,776.81,775.91,0.22405573]
[1754565354775,1.194,777.04,775.91,0.22405573]
[1754565354776,0.86516242,776.85,775.91,0.22405573]
[1754565355178,1.194,777.04,775.91,0.22405573]
[1754565357382,0.86316556,776.9,775.91,0.22405573]
[1754565357880,0.86316556,776.88,775.91,0.22405573]
[1754565358377,0.86316556,776.89,775.91,0.22405573]
[1754565358680,1.194,777.04,775.91,0.22405573]
[1754565358681,0.86316556,776.9,775.91,0.22405573]
[1754565359582,0.86316556,776.91,775.91,0.22405573]
[1754565359877,0.86316556,776.92,775.91,0.22405573]
[1754565360080,0.86316556,776.9,775.91,0.22405573]
[1754565360376,0.86316556,776.92,775.91,0.22405573]
[1754565360877,0.86316556,776.87,775.91,0.22405573]
[1754565361282,0.86316556,776.88,775.91,0.22405573]
[1754565361678,0.86316556,776.85,775.91,0.22405573]
[1754565361984,0.86316556,776.86,775.91,0.22405573]
[1754565362585,0.86316556,776.92,775.91,0.22405573]
[1754565362783,0.86316556,776.93,775.91,0.22405573]
[1754565362981,0.86316556,776.97,775.91,0.22405573]
[1754565363485,0.86316556,776.98,775.91,0.22405573]
[1754565363881,0.86316556,776.99,775.91,0.22405573]
[1754565364082,0.86316556,777.02,775.91,1.08100539]
[1754565364385,1.194,777.04,775.95,0.85694966]
[1754565365186,2.05716556,777.04,775.96,0.85694966]
[1754565365682,2.05716556,777.04,775.95,0.85694966]
[1754565365984,2.05716556,777.04,775.96,0.85694966]
[1754565366185,1.194,777.04,775.94,0.85694966]
[1754565366385,2.05716556,777.04,775.95,0.85694966]
[1754565366588,0.86316556,777.03,775.94,0.85694966]
[1754565366982,0.86316556,777.02,775.93,0.85694966]
[1754565367286,0.86316556,777.01,775.94,0.85694966]
[1754565368187,0.86316556,777.0,775.94,0.85694966]
[1754565369082,0.86316556,776.99,775.93,0.85694966]
[1754565369490,0.86316556,776.93,775.91,0.22405573]
[1754565369784,0.86316556,776.95,775.91,0.22405573]
[1754565369989,0.86316556,776.94,775.91,0.22405573]
[1754565371187,0.86316556,776.95,775.91,0.22405573]
[1754565371490,0.86316556,776.93,775.91,1.08100539]
[1754565371692,0.86316556,776.91,775.91,0.22405573]
[1754565371888,0.86316556,776.88,775.91,0.22405573]
[1754565372491,0.86316556,776.87,775.91,0.22405573]
[1754565373093,0.86316556,776.88,775.91,0.22405573]
[1754565374894,0.86316556,776.86,775.91,0.22405573]
[1754565375094,0.86316556,776.87,775.91,0.22405573]
[1754565375491,0.86316556,776.86,775.91,0.22405573]
[1754565375891,0.86316556,776.87,775.91,0.22405573]